[Event "Polish University-ch Open 2024"]
[Site "Lublin"]
[Date "2024.02.24"]
[Round "8.12"]
[White "Bilczewski, Kacper"]
[Black "Szustakowski, Antoni"]
[Result "0-1"]
[ECO "C13"]
[WhiteElo "2139"]
[BlackElo "2354"]
[Annotator "RC"]
[PlyCount "78"]
[EventDate "2024.02.22"]
[EventType "swiss"]
[EventCountry "POL"]
[SourceTitle "playchess.com"]
[Source "ChessBase"]
[SourceQuality "1"]
[TimeControl "600+3"]

1. e4 {[%emt 0:00:03]} e6 {[%emt 0:00:01]} 2. d4 {[%emt 0:00:04]} d5 {[%emt 0:00:01]} 3. Nc3 {[%emt 0:00:02]} Nf6 {[%emt 0:00:04]} 4. Bg5 {[%emt 0:00:02]} dxe4 {[%emt 0:00:01]} 5. Nxe4 {[%emt 0:00:40]} Be7 {[%emt 0:00:02]} 6. Bxf6 {[%emt 0:00:11]} gxf6 {[%emt 0:00:01]} 7. Nf3 {[%emt 0:00:22]} a6 {[%emt 0:00:02]} 8. Qd2 {[%emt 0:00:31]} f5 {[%emt 0:00:48]} 9. Nc3 {[%emt 0:00:21]} Nd7 {[%emt 0:00:10]} 10. O-O-O {[%emt 0:00:35]} Bf6 {[%emt 0:01:14]} 11. Bc4 {[%emt 0:01:07]} b5 {[%emt 0:00:15]} 12. Bb3 {[%emt 0:00:10]} Bb7 {[%emt 0:00:05]} 13. d5 {[%emt 0:00:25]} e5 {[%emt 0:00:25]} 14. Rhe1 {[%emt 0:00:50]} O-O {[%emt 0:00:38]} 15. d6 {[%emt 0:00:26]} c6 {[%emt 0:00:39]} 16. g4 {[%emt 0:01:09]} b4 {[%emt 0:02:08]} 17. Na4 {[%emt 0:00:05]} e4 {[%emt 0:00:45]} 18. gxf5 {[%emt 0:00:15]} exf3 {[%emt 0:00:16]} 19. Rg1+ {[%emt 0:00:02]} Kh8 {[%emt 0:00:01]} 20. Qh6 {[%emt 0:00:47]} Rg8 {[%emt 0:00:07]} 21. Kb1 {[%emt 0:00:15]} Rg2 {[%emt 0:01:00]} 22. Bxf7 {[%emt 0:00:43]} Qf8 {[%emt 0:00:01]} 23. Qh5 {[%emt 0:00:01]} c5 {[%emt 0:00:39]} 24. Be6 {[%emt 0:00:17]} Bc6 {[%emt 0:00:10]} 25. Bxd7 {[%emt 0:00:09]} Bxd7 {[%emt 0:00:01]} 26. Nxc5 {[%emt 0:00:01]} Bc6 {[%emt 0:00:02]} 27. Ne6 {[%emt 0:00:12]} Qg8 {[%emt 0:00:16]} 28. Rge1 {[%emt 0:00:12]} Rxf2 {[%emt 0:00:18]} 29. Qh6 {[%emt 0:00:34]} Bg7 {[%emt 0:00:33]} 30. Qf4 {[%emt 0:00:01]} Re2 {[%emt 0:00:32]} 31. d7 {[%emt 0:00:20]} Rxe1 {[%emt 0:00:06]} 32. Rxe1 {[%emt 0:00:13]} Bxd7 {[%emt 0:00:01]} 33. Qxf3 {[%emt 0:00:02]} Bxe6 {[%emt 0:00:04]} 34. fxe6 {[%emt 0:00:38]} Re8 {[%emt 0:00:01]} 35. Qc6 {[%emt 0:00:00]} Qf8 {[%emt 0:00:04]} 36. Qxa6 {[%emt 0:00:00]} Qf6 {[%emt 0:00:01]} 37. c3 {[%emt 0:00:00]} bxc3 {[%emt 0:00:08]} 38. Qb5 {[%emt 0:00:00]} Qg6+ {[%emt 0:00:01]} 39. Ka1 {[%emt 0:00:01]} cxb2+ {[%emt 0:00:05]} 0-1

[Event "Polish University-ch Open 2024"]
[Site "Lublin"]
[Date "2024.02.24"]
[Round "8.13"]
[White "Hrymowicz, Artur"]
[Black "Nowak, Mikolaj"]
[Result "1-0"]
[ECO "C45"]
[WhiteElo "2131"]
[BlackElo "2317"]
[Annotator "TA"]
[PlyCount "121"]
[EventDate "2024.02.22"]
[EventType "swiss"]
[EventCountry "POL"]
[SourceTitle "playchess.com"]
[Source "ChessBase"]
[SourceQuality "1"]
[TimeControl "600+3"]

{[%evp 28,121,32,25,73,35,43,36,43,41,58,51,54,42,51,65,48,51,83,-36,-23,-25,-48,-85,-96,-168,-71,-143,-125,-156,-150,-161,-11,-15,0,-56,62,-118,-85,-72,-71,-67,-33,-18,-33,-84,-74,-109,-82,-82,-76,-96,-79,-91,0,-97,-75,-101,0,-91,-66,-64,-75,-104,-78,-118,-91,-97,-20,-58,-9,-26,0,-8,0,0,0,-679,122,121,114,111,130,100,108,0,130,0,113,67,110,118,116,112,29969,29970]} 1. e4 {[%emt 0:00:01]} e5 {[%emt 0:00:01]} 2. Nf3 {[%emt 0:00:02]} Nc6 {[%emt 0:00:01]} 3. d4 {[%emt 0:00:03]} exd4 {[%emt 0:00:02]} 4. Nxd4 {[%emt 0:00:03]} Bb4+ {[%emt 0:00:01]} 5. c3 {[%emt 0:00:27]} Bc5 {[%emt 0:00:02]} 6. Be3 {[%emt 0:00:26]} Bb6 {[%emt 0:00:01] C45: Scotch Game.} 7. Bb5 {[%emt 0:00:39]} Nf6 {[%emt 0:00:13]} 8. Nd2 {[%emt 0:00:15]} O-O {[%emt 0:00:23]} 9. O-O {[%emt 0:00:04]} Nxd4 {[%emt 0:00:18]} 10. Bxd4 {[%emt 0:00:41]} c6 {[%emt 0:00:34]} 11. Bd3 {[%emt 0:01:52]} d6 {[%emt 0:00:28]} 12. Qc2 $146 {[%emt 0:00:42]} ({Predecessor:} 12. Qf3 Bxd4 13. cxd4 Be6 14. e5 dxe5 15. dxe5 Ng4 16. Qe4 g6 17. Qe2 Qa5 18. Nf3 {½-½ El Debs,F (2523)-Damaso,R (2444) Olympiad-42 Baku 2016 (10.3)}) 12... Bc7 {[%emt 0:00:37]} 13. Rae1 {[%emt 0:00:48]} h6 {[%emt 0:00:29]} 14. h3 {[%emt 0:00:33]} c5 {[%emt 0:00:27]} 15. Be3 {[%emt 0:00:12]} b6 {[%emt 0:00:01]} (15... Re8 $11 {is more appropriate.}) 16. Bf4 {[%emt 0:01:43]} Bb7 {[%emt 0:00:01]} 17. a4 {[%emt 0:00:20]} Re8 {[%emt 0:00:17]} 18. Bh2 {[%emt 0:00:29]} d5 {[%emt 0:00:21]} 19. e5 {[%emt 0:00:10]} Nd7 {[%emt 0:00:25]} 20. f4 {[%emt 0:00:03]} c4 {[%emt 0:00:40]} 21. Bf5 {[%emt 0:00:18]} Nc5 {[%emt 0:00:15]} 22. Nf3 {[%emt 0:00:23]} Bc6 {[%emt 0:00:02] [#]} 23. a5 {[%emt 0:00:01]} (23. Nd4 $1 $16 Bxa4 24. Qe2) 23... bxa5 $15 {[%emt 0:00:14]} 24. Nd4 {[%emt 0:00:02]} Bd7 {[%emt 0:00:10]} 25. Bxd7 {[%emt 0:00:16]} Qxd7 {[%emt 0:00:02]} 26. Re3 {[%emt 0:00:36]} (26. Kh1 $17) 26... f6 {[%emt 0:00:22]} (26... Ne4 $19 27. Kh1 Rab8) 27. Rfe1 {[%emt 0:00:10]} (27. Kh1 $142) 27... Ne4 {[%emt 0:00:58]} 28. Rxe4 {[%emt 0:00:04]} dxe4 {[%emt 0:00:05]} 29. Qxe4 {[%emt 0:00:01]} fxe5 {[%emt 0:00:33]} (29... Bb6 $19 {Threatens to win with ...f5.} 30. Rd1 Rad8) 30. fxe5 $11 {[%emt 0:00:01]} Rad8 {[%emt 0:00:21]} 31. Kh1 {[%emt 0:00:06]} (31. e6 $1 $11 Bxh2+ 32. Kxh2 Qd6+ 33. Kh1) 31... Qd5 {[%emt 0:01:16]} ({Better is} 31... Bb6 $15 32. e6 Qd5) 32. Qe2 $2 {[%emt 0:00:01]} (32. Qg6 $1 $14 {was the only good move.} Bxe5 33. Qh5) 32... Kh8 {[%emt 0:00:38]} 33. e6 {[%emt 0:00:04]} Bxh2 {[%emt 0:00:03]} 34. Kxh2 {[%emt 0:00:01]} Re7 {[%emt 0:00:14]} 35. Qg4 {[%emt 0:00:05]} Rf8 {[%emt 0:00:02]} 36. Qh4 {[%emt 0:00:04]} (36. Qg3 $15) 36... Rf6 {[%emt 0:00:10]} 37. Kh1 {[%emt 0:00:02]} Kh7 {[%emt 0:00:17]} 38. Qg3 {[%emt 0:00:02]} a4 {[%emt 0:00:14]} 39. Kh2 {[%emt 0:00:04]} Qb7 {[%emt 0:00:02]} 40. Re2 {[%emt 0:00:02]} Qd5 {[%emt 0:00:01]} 41. Re1 {[%emt 0:00:02]} Rg6 {[%emt 0:00:01]} 42. Qf2 {[%emt 0:00:03]} Rf6 {[%emt 0:00:02]} 43. Qg3 $1 {[%emt 0:00:01]} a6 {[%emt 0:00:00]} 44. Re2 {[%emt 0:00:04]} Qc5 {[%emt 0:00:04]} 45. Qe3 {[%emt 0:00:06]} Qd6+ {[%emt 0:00:07]} 46. Kg1 {[%emt 0:00:02]} Qd5 {[%emt 0:00:02]} (46... Re8 {looks sharper.} 47. Qc1 Ref8 48. Qa1 g6) 47. Kh2 {[%emt 0:00:04]} a5 {[%emt 0:00:04]} (47... Re8 $17) 48. Kg1 {[%emt 0:00:02]} Kh8 {[%emt 0:00:07]} (48... Re8 $15) 49. Kh2 {[%emt 0:00:02]} a3 {[%emt 0:00:01]} 50. bxa3 {[%emt 0:00:01]} Qd6+ {[%emt 0:00:01]} (50... Rf1 {is interesting.} 51. a4 Re8 52. Qg3 Qb7) 51. Qe5 {[%emt 0:00:06]} Qxa3 {[%emt 0:00:05]} 52. Nf5 $2 {[%emt 0:00:04][%mdl 8192] [#]} (52. Qd5 $11 Kh7 (52... Qxc3 $2 53. Qd8+ Kh7 54. Qxe7 $18) 53. Nf5) 52... Kh7 $2 {[%emt 0:00:23]} ({Black should play} 52... Rexe6 $1 $19 53. Qb8+ Kh7) 53. Nxe7 $16 {[%emt 0:00:01]} Qxe7 {[%emt 0:00:01]} 54. Qe4+ {[%emt 0:00:05]} (54. Qxa5 Qd6+ 55. Qe5 Rxe6 56. Qxd6 Rxd6 $16) 54... Kh8 {[%emt 0:00:03]} 55. Qa8+ {[%emt 0:00:01]} (55. Qxc4 Qd6+ 56. g3 Rf3 $17) 55... Kh7 {[%emt 0:00:01]} 56. Qe4+ {[%emt 0:00:02]} (56. Qxa5 Qd6+ 57. Qe5 Rxe6 58. Qxd6 Rxd6 $16) 56... Kh8 $1 {[%emt 0:00:01]} 57. Qa8+ {[%emt 0:00:07]} ({Reject} 57. Qxc4 $6 Qd6+ 58. g3 Rf3 $15) 57... Kh7 {[%emt 0:00:01]} 58. Qd5 {[%emt 0:00:03]} (58. Qxa5 Qd6+ 59. Qe5 Rxe6 60. Qxd6 Rxd6) ({White should try} 58. Qc6 $16) 58... a4 {[%emt 0:00:05]} 59. Qxc4 {[%emt 0:00:03]} a3 {[%emt 0:00:01]} 60. Qd3+ {[%emt 0:00:02]} Kh8 $2 {[%emt 0:00:03][%mdl 8192]} (60... Rg6 $16 61. c4 a2 62. Rxa2 Qxe6) 61. Qd7 {[%emt 0:00:02]} 1-0

[Event "Polish University-ch Open 2024"]
[Site "Lublin"]
[Date "2024.02.24"]
[Round "8.14"]
[White "Musial, Tomasz"]
[Black "Pacan-Milej, Kosma"]
[Result "1-0"]
[ECO "B11"]
[WhiteElo "2171"]
[BlackElo "2438"]
[Annotator "RC"]
[PlyCount "119"]
[EventDate "2024.02.22"]
[EventType "swiss"]
[EventCountry "POL"]
[SourceTitle "playchess.com"]
[Source "ChessBase"]
[SourceQuality "1"]
[TimeControl "600+3"]

1. e4 {[%emt 0:00:02]} c6 {[%emt 0:00:01]} 2. Nf3 {[%emt 0:00:02]} d5 {[%emt 0:00:01]} 3. Nc3 {[%emt 0:00:02]} Bg4 {[%emt 0:00:02]} 4. h3 {[%emt 0:00:05]} Bxf3 {[%emt 0:00:02]} 5. Qxf3 {[%emt 0:00:03]} e6 {[%emt 0:00:03]} 6. Be2 {[%emt 0:00:03]} Nd7 {[%emt 0:00:04]} 7. d4 {[%emt 0:00:05]} Bb4 {[%emt 0:00:23]} 8. O-O {[%emt 0:00:15]} Bxc3 {[%emt 0:00:26]} 9. bxc3 {[%emt 0:00:05]} dxe4 {[%emt 0:00:02]} 10. Qxe4 {[%emt 0:00:03]} Ngf6 {[%emt 0:00:02]} 11. Qf3 {[%emt 0:00:27]} O-O {[%emt 0:00:02]} 12. Rb1 {[%emt 0:00:02]} Nb6 {[%emt 0:00:09]} 13. Ba3 {[%emt 0:02:14]} Re8 {[%emt 0:00:02]} 14. c4 {[%emt 0:01:00]} Qxd4 {[%emt 0:03:15]} 15. c5 {[%emt 0:00:01]} Nbd7 {[%emt 0:00:05]} 16. Rfd1 {[%emt 0:01:49]} Qa4 {[%emt 0:01:01]} 17. Rxb7 {[%emt 0:00:11]} Ne5 {[%emt 0:00:05]} 18. Qb3 {[%emt 0:00:40]} Qe4 {[%emt 0:00:04]} 19. Bf1 {[%emt 0:00:19]} Ng6 {[%emt 0:01:09]} 20. Bb2 {[%emt 0:00:55]} Nd5 {[%emt 0:00:33]} 21. c4 {[%emt 0:00:11]} Ndf4 {[%emt 0:00:09]} 22. Rdd7 {[%emt 0:00:25]} Rf8 {[%emt 0:00:38]} 23. Rxf7 {[%emt 0:00:14]} Rxf7 {[%emt 0:00:03]} 24. Rxf7 {[%emt 0:00:02]} Kxf7 {[%emt 0:00:01]} 25. Qb7+ {[%emt 0:00:01]} Ne7 {[%emt 0:00:01]} 26. Qxa8 {[%emt 0:00:01]} Qb1 {[%emt 0:00:06]} 27. Bxg7 {[%emt 0:01:06]} Kxg7 {[%emt 0:00:32]} 28. Qe8 {[%emt 0:00:03]} Neg6 {[%emt 0:00:16]} 29. Qd7+ {[%emt 0:00:03]} Kh6 {[%emt 0:00:02]} 30. Qd2 {[%emt 0:00:02]} Kg7 {[%emt 0:01:05]} 31. Qd7+ {[%emt 0:00:02]} Kf6 {[%emt 0:00:09]} 32. Qd4+ {[%emt 0:00:22]} Kf7 {[%emt 0:00:06]} 33. Qd7+ {[%emt 0:00:04]} Ne7 {[%emt 0:00:02]} 34. Qd2 {[%emt 0:00:30]} Qf5 {[%emt 0:00:02]} 35. Qe3 {[%emt 0:00:03]} e5 {[%emt 0:00:27]} 36. g3 {[%emt 0:00:13]} Ne6 {[%emt 0:00:02]} 37. Be2 {[%emt 0:00:03]} Qg5 {[%emt 0:00:21]} 38. Qf3+ {[%emt 0:00:01]} Kg7 {[%emt 0:00:04]} 39. Bd3 {[%emt 0:00:03]} Nd4 {[%emt 0:00:06]} 40. Qe4 {[%emt 0:00:01]} Ng6 {[%emt 0:00:05]} 41. h4 {[%emt 0:00:02]} Qc1+ {[%emt 0:00:04]} 42. Kg2 {[%emt 0:00:03]} Qh6 {[%emt 0:00:11]} 43. f4 {[%emt 0:00:02]} Qh5 {[%emt 0:00:05]} 44. fxe5 {[%emt 0:00:05]} Qxe5 {[%emt 0:00:01]} 45. Qg4 {[%emt 0:00:06]} Ne6 {[%emt 0:00:04]} 46. h5 {[%emt 0:00:01]} Qxh5 {[%emt 0:00:03]} 47. Qxh5 {[%emt 0:00:02]} Nef4+ {[%emt 0:00:01]} 48. gxf4 {[%emt 0:00:01]} Nxf4+ {[%emt 0:00:00]} 49. Kf3 {[%emt 0:00:02]} Nxh5 {[%emt 0:00:01]} 50. Be4 {[%emt 0:00:00]} Nf6 {[%emt 0:00:05]} 51. Bxc6 {[%emt 0:00:01]} Kf7 {[%emt 0:00:02]} 52. Bb7 {[%emt 0:00:02]} Ke6 {[%emt 0:00:02]} 53. Kf4 {[%emt 0:00:03]} h6 {[%emt 0:00:06]} 54. Bf3 {[%emt 0:00:04]} Nd7 {[%emt 0:00:03]} 55. Bg4+ {[%emt 0:00:01]} Ke7 {[%emt 0:00:01]} 56. c6 {[%emt 0:00:02]} Nb6 {[%emt 0:00:08]} 57. c7 {[%emt 0:00:00]} Kd6 {[%emt 0:00:05]} 58. c8=Q {[%emt 0:00:27]} Nxc8 {[%emt 0:00:01]} 59. Bxc8 {[%emt 0:00:00]} Kc5 {[%emt 0:00:00]} 60. Be6 {[%emt 0:00:06]} 1-0

[Event "Polish University-ch Open 2024"]
[Site "Lublin"]
[Date "2024.02.24"]
[Round "8.15"]
[White "Golecki, Jan"]
[Black "Lukasiewicz, Krzysztof"]
[Result "0-1"]
[ECO "B13"]
[WhiteElo "2185"]
[BlackElo "2290"]
[Annotator "TA"]
[PlyCount "58"]
[EventDate "2024.02.22"]
[EventType "swiss"]
[EventCountry "POL"]
[SourceTitle "playchess.com"]
[Source "ChessBase"]
[SourceQuality "1"]
[TimeControl "600+3"]

{[%evp 13,58,0,5,12,9,-16,0,0,0,-19,-11,-17,-27,-52,0,-59,-77,-62,-27,-107,-36,-127,-25,-213,-140,-222,-229,-231,-220,-538,-527,-535,-550,-542,-556,-686,-707,-706,-699,-880,-802,-804,-783,-961,-951,-1329,-1220]} 1. e4 {[%emt 0:00:02]} c6 {[%emt 0:00:01]} 2. d4 {[%emt 0:00:02]} d5 {[%emt 0:00:01]} 3. exd5 {[%emt 0:00:01]} cxd5 {[%emt 0:00:01]} 4. Bd3 {[%emt 0:00:01]} Nc6 {[%emt 0:00:01]} 5. c3 {[%emt 0:00:01]} Qc7 {[%emt 0:00:01]} 6. Ne2 {[%emt 0:00:02]} Bg4 {[%emt 0:00:08]} 7. f3 {[%emt 0:00:06]} Bd7 {[%emt 0:00:01]} 8. O-O {[%emt 0:00:02]} Nf6 {[%emt 0:00:04]} 9. Bf4 {[%emt 0:00:03]} e5 {[%emt 0:00:01]} 10. dxe5 {[%emt 0:00:01] The position is equal.} Nxe5 {[%emt 0:00:02]} 11. Nd4 {[%emt 0:00:28] [#] Bxe5 is the strong threat.} Bd6 {[%emt 0:00:44]} 12. Kh1 {[%emt 0:03:02]} O-O {[%emt 0:00:31]} 13. Na3 {[%emt 0:00:46]} a6 {[%emt 0:00:05] Wards off Ndb5} ({Better is} 13... Bxa3 $15 14. bxa3 Rfe8) 14. Nf5 {[%emt 0:01:30]} (14. Bf5 $11) 14... Bxa3 $15 {[%emt 0:01:13]} 15. bxa3 {[%emt 0:00:02]} Qxc3 {[%emt 0:00:02]} 16. Bc2 {[%emt 0:01:59]} (16. Rc1 $11 Qxd3 17. Ne7+ Kh8 18. Bxe5 Qxd1 19. Rfxd1) 16... Nc4 {[%emt 0:00:42] Black is more active.} (16... Bxf5 $17 17. Bxf5 Rfe8) 17. Rc1 {[%emt 0:00:23]} (17. Ne7+ $15 Kh8 18. Bg5) 17... Qxa3 {[%emt 0:00:18]} (17... Bxf5 $1 $17 18. Bxf5 Qxa3) 18. Qe1 $2 {[%emt 0:01:02] White does not recover from this.} (18. Nxg7 $1 $11 {and White is okay.} Kxg7 19. Qe1) 18... Rfe8 {[%emt 0:00:48]} (18... Qxa2 $2 19. Ne7+ Kh8 20. Qh4 $18) 19. Qh4 {[%emt 0:00:06]} (19. Nh6+ $17 {might work better.} Kf8 (19... gxh6 20. Qh4 $11) 20. Qf2) 19... Bxf5 $1 $19 {[%emt 0:00:18]} (19... Qxa2 $2 {is the wrong capture.} 20. Nxg7 Re2 21. Qxf6 $18) 20. Bxf5 {[%emt 0:00:08] A strong pair of Bishops.} Ne3 {[%emt 0:00:02]} ({Weaker is} 20... Qxa2 21. g4 Qb2 22. g5 $15) 21. Bb1 {[%emt 0:00:33]} (21. Bxe3 {was the crucial defense.} Rxe3 (21... Qxe3 $2 22. a4 $19) 22. Bc8) 21... Nxf1 {[%emt 0:00:44] Black is clearly winning.} 22. Rxf1 {[%emt 0:00:19]} Qb2 {[%emt 0:00:57]} 23. Bg5 {[%emt 0:00:18]} h6 {[%emt 0:00:04]} 24. Bxh6 {[%emt 0:00:10]} gxh6 {[%emt 0:00:02]} 25. Qxh6 {[%emt 0:00:02]} Re6 {[%emt 0:01:58][%cal Of6e4] Strongly threatening ...Ne4!} 26. g4 {[%emt 0:00:02]} Qe2 {[%emt 0:00:25][%cal Re2f1]} 27. Qg5+ {[%emt 0:00:08]} Kf8 {[%emt 0:00:02][%cal Re2f1]} 28. Qh6+ {[%emt 0:00:03]} Ke7 {[%emt 0:00:02]} 29. Qh3 {[%emt 0:00:03] [#]} Rh8 $3 {[%emt 0:00:05][%mdl 512] Weighted Error Value: White=0.94/Black=0.29 (precise) .  Loses game:     	White=1     	---        Mistake:       	White=5     	Black=3      Inaccurate:     	---       	Black=2      OK:         	White=2     	Black=7      Best:        	---       	Black=2      Strong:       	---       	Black=1} 0-1

[Event "Polish University-ch Open 2024"]
[Site "Lublin"]
[Date "2024.02.24"]
[Round "8.16"]
[White "Majocha, Piotr"]
[Black "Pniaczek, Marek"]
[Result "0-1"]
[ECO "A06"]
[WhiteElo "2027"]
[BlackElo "2116"]
[Annotator "RC"]
[PlyCount "120"]
[EventDate "2024.02.22"]
[EventType "swiss"]
[EventCountry "POL"]
[SourceTitle "playchess.com"]
[Source "ChessBase"]
[SourceQuality "1"]
[TimeControl "600+3"]

1. Nf3 {[%emt 0:00:01]} d5 {[%emt 0:00:01]} 2. e3 {[%emt 0:00:03]} c5 {[%emt 0:00:10]} 3. c4 {[%emt 0:00:12]} dxc4 {[%emt 0:00:19]} 4. Bxc4 {[%emt 0:00:11]} Nf6 {[%emt 0:00:01]} 5. Qb3 {[%emt 0:01:09]} e6 {[%emt 0:00:10]} 6. d4 {[%emt 0:00:15]} Nc6 {[%emt 0:00:12]} 7. dxc5 {[%emt 0:00:10]} Bxc5 {[%emt 0:00:03]} 8. O-O {[%emt 0:00:07]} O-O {[%emt 0:00:04]} 9. Bd2 {[%emt 0:00:42]} a6 {[%emt 0:01:28]} 10. Be2 {[%emt 0:01:20]} Qe7 {[%emt 0:00:07]} 11. Nc3 {[%emt 0:01:02]} e5 {[%emt 0:00:18]} 12. Nd5 {[%emt 0:01:01]} Nxd5 {[%emt 0:00:09]} 13. Qxd5 {[%emt 0:00:01]} e4 {[%emt 0:00:44]} 14. Nd4 {[%emt 0:00:02]} Rd8 {[%emt 0:00:27]} 15. Qc4 {[%emt 0:01:30]} Nxd4 {[%emt 0:00:30]} 16. exd4 {[%emt 0:00:01]} Bxd4 {[%emt 0:00:09]} 17. Bb4 {[%emt 0:00:16]} Qf6 {[%emt 0:00:21]} 18. Rad1 {[%emt 0:00:21]} Be6 {[%emt 0:00:06]} 19. Qc7 {[%emt 0:01:03]} Rd7 {[%emt 0:00:07]} 20. Qc2 {[%emt 0:00:11]} Qg6 {[%emt 0:00:11]} 21. Kh1 {[%emt 0:00:31]} Rad8 {[%emt 0:00:08]} 22. b3 {[%emt 0:00:33]} h6 {[%emt 0:00:20]} 23. Bc4 {[%emt 0:00:18]} Bg4 {[%emt 0:00:12]} 24. Rde1 {[%emt 0:00:03]} Bf5 {[%emt 0:00:17]} 25. Qc1 {[%emt 0:00:09]} Qb6 {[%emt 0:00:34]} 26. Bd2 {[%emt 0:00:05]} Bxf2 {[%emt 0:00:10]} 27. Re2 {[%emt 0:00:01]} e3 {[%emt 0:01:32]} 28. Bxe3 {[%emt 0:00:02]} Bxe3 {[%emt 0:00:03]} 29. Qxe3 {[%emt 0:00:04]} Qxe3 {[%emt 0:00:05]} 30. Rxe3 {[%emt 0:00:01]} Bg6 {[%emt 0:00:03]} 31. h3 {[%emt 0:00:06]} b5 {[%emt 0:00:03]} 32. Be2 {[%emt 0:00:04]} Rd2 {[%emt 0:00:02]} 33. a4 {[%emt 0:00:02]} bxa4 {[%emt 0:00:07]} 34. bxa4 {[%emt 0:00:01]} a5 {[%emt 0:00:01]} 35. Bb5 {[%emt 0:00:06]} Rc8 {[%emt 0:00:37]} 36. Re8+ {[%emt 0:00:03]} Rxe8 {[%emt 0:00:04]} 37. Bxe8 {[%emt 0:00:01]} Re2 {[%emt 0:00:20]} 38. Bc6 {[%emt 0:00:03]} Be4 {[%emt 0:00:01]} 39. Bxe4 {[%emt 0:00:05]} Rxe4 {[%emt 0:00:01]} 40. Rf5 {[%emt 0:00:03]} Rxa4 {[%emt 0:00:02]} 41. Kh2 {[%emt 0:00:01]} g6 {[%emt 0:00:02]} 42. Rb5 {[%emt 0:00:03]} Kg7 {[%emt 0:01:48]} 43. Rb6 {[%emt 0:00:02]} Ra3 {[%emt 0:00:00]} 44. Ra6 {[%emt 0:00:05]} h5 {[%emt 0:00:00]} 45. Kg1 {[%emt 0:00:04]} h4 {[%emt 0:00:00]} 46. Kf2 {[%emt 0:00:03]} g5 {[%emt 0:00:00]} 47. Kf1 {[%emt 0:00:02]} f6 {[%emt 0:00:00]} 48. Kf2 {[%emt 0:00:02]} Kg6 {[%emt 0:00:00]} 49. Ke2 {[%emt 0:00:04]} Kf5 {[%emt 0:00:00]} 50. Kf2 {[%emt 0:00:01]} Ke5 {[%emt 0:00:00]} 51. Ke2 {[%emt 0:00:02]} f5 {[%emt 0:00:00]} 52. Rg6 {[%emt 0:00:07]} Kf4 {[%emt 0:00:00]} 53. Kf2 {[%emt 0:00:01]} Ra2+ {[%emt 0:00:00]} 54. Kg1 {[%emt 0:00:02]} a4 {[%emt 0:00:00]} 55. Rg8 {[%emt 0:00:03]} a3 {[%emt 0:00:00]} 56. Rg7 {[%emt 0:00:03]} Rb2 {[%emt 0:00:00]} 57. Kh2 {[%emt 0:00:05]} a2 {[%emt 0:00:00]} 58. Ra7 {[%emt 0:00:00]} Ke3 {[%emt 0:00:00]} 59. Ra5 {[%emt 0:00:06]} Kd3 {[%emt 0:00:00]} 60. Ra6 {[%emt 0:00:04]} Kc2 {[%emt 0:00:00]} 0-1

[Event "Polish University-ch Open 2024"]
[Site "Lublin"]
[Date "2024.02.24"]
[Round "8.17"]
[White "Hasterok, Mateusz"]
[Black "Chaczynski, Kamil"]
[Result "1/2-1/2"]
[ECO "D31"]
[WhiteElo "2150"]
[BlackElo "2118"]
[Annotator "RC"]
[PlyCount "48"]
[EventDate "2024.02.22"]
[EventType "swiss"]
[EventCountry "POL"]
[SourceTitle "playchess.com"]
[Source "ChessBase"]
[SourceQuality "1"]
[TimeControl "600+3"]

1. d4 {[%emt 0:00:01]} d5 {[%emt 0:00:01]} 2. c4 {[%emt 0:00:01]} e6 {[%emt 0:00:01]} 3. Nc3 {[%emt 0:00:01]} a6 {[%emt 0:00:02]} 4. cxd5 {[%emt 0:10:12]} exd5 {[%emt 0:00:01]} 5. Qb3 {[%emt 0:00:00]} Nf6 {[%emt 0:00:23]} 6. Bg5 {[%emt 0:00:00]} c5 {[%emt 0:01:53]} 7. Bxf6 {[%emt 0:00:00]} gxf6 {[%emt 0:00:01]} 8. dxc5 {[%emt 0:00:00]} d4 {[%emt 0:00:52]} 9. O-O-O {[%emt 0:00:00]} Be6 {[%emt 0:01:08]} 10. Qxb7 {[%emt 0:00:00]} Nd7 {[%emt 0:00:02]} 11. Rxd4 {[%emt 0:00:00]} Bxc5 {[%emt 0:00:07]} 12. Rd1 {[%emt 0:00:00]} Rb8 {[%emt 0:02:24]} 13. Qe4 {[%emt 0:00:00]} Qa5 {[%emt 0:00:54]} 14. Qa4 {[%emt 0:00:00]} Qb6 {[%emt 0:00:02]} 15. Qc2 {[%emt 0:00:00]} Bxf2 {[%emt 0:00:38]} 16. Nf3 {[%emt 0:00:00]} O-O {[%emt 0:00:48]} 17. e4 {[%emt 0:00:39]} Rfc8 {[%emt 0:00:17]} 18. Kb1 {[%emt 0:00:00]} Bc5 {[%emt 0:00:37]} 19. Ka1 {[%emt 0:00:00]} Bb4 {[%emt 0:00:29]} 20. Be2 {[%emt 0:00:00]} Qa5 {[%emt 0:00:04]} 21. Qa4 {[%emt 0:00:00]} Bxc3 {[%emt 0:00:04]} 22. Qxa5 {[%emt 0:00:00]} Bxa5 {[%emt 0:00:21]} 23. Nd4 {[%emt 0:00:00]} Ne5 {[%emt 0:00:00]} 24. Bxa6 {[%emt 0:00:00]} Rd8 {[%emt 0:00:00]} 1/2-1/2

[Event "Polish University-ch Open 2024"]
[Site "Lublin"]
[Date "2024.02.24"]
[Round "8.18"]
[White "Drozdowski, Konrad"]
[Black "Galuszka, Tomasz"]
[Result "1/2-1/2"]
[ECO "A07"]
[WhiteElo "2117"]
[BlackElo "2181"]
[Annotator "RC"]
[PlyCount "68"]
[EventDate "2024.02.22"]
[EventType "swiss"]
[EventCountry "POL"]
[SourceTitle "playchess.com"]
[Source "ChessBase"]
[SourceQuality "1"]
[TimeControl "600+3"]

1. Nf3 {[%emt 0:10:06]} d5 {[%emt 0:00:01]} 2. g3 {[%emt 0:00:00]} c6 {[%emt 0:00:05]} 3. Bg2 {[%emt 0:00:00]} Bg4 {[%emt 0:00:02]} 4. h3 {[%emt 0:00:00]} Bxf3 {[%emt 0:00:07]} 5. Bxf3 {[%emt 0:00:00]} Nd7 {[%emt 0:00:01]} 6. d4 {[%emt 0:00:00]} e6 {[%emt 0:00:03]} 7. O-O {[%emt 0:00:00]} Bd6 {[%emt 0:00:02]} 8. c4 {[%emt 0:00:00]} Ngf6 {[%emt 0:00:03]} 9. Nd2 {[%emt 0:00:00]} O-O {[%emt 0:00:04]} 10. b3 {[%emt 0:00:00]} Qc7 {[%emt 0:00:18]} 11. Bb2 {[%emt 0:00:00]} a5 {[%emt 0:00:11]} 12. e4 {[%emt 0:00:00]} dxe4 {[%emt 0:00:11]} 13. Nxe4 {[%emt 0:00:00]} Nxe4 {[%emt 0:00:10]} 14. Bxe4 {[%emt 0:00:00]} Nf6 {[%emt 0:00:05]} 15. Bg2 {[%emt 0:00:00]} a4 {[%emt 0:00:13]} 16. Qc2 {[%emt 0:00:00]} e5 {[%emt 0:00:17]} 17. c5 {[%emt 0:00:00]} Be7 {[%emt 0:00:02]} 18. dxe5 {[%emt 0:00:00]} Nd7 {[%emt 0:00:08]} 19. b4 {[%emt 0:00:00]} Nxe5 {[%emt 0:00:12]} 20. a3 {[%emt 0:00:00]} Bf6 {[%emt 0:00:04]} 21. Rad1 {[%emt 0:00:00]} Nd7 {[%emt 0:00:27]} 22. Bc1 {[%emt 0:00:00]} Rfe8 {[%emt 0:00:06]} 23. Rfe1 {[%emt 0:00:00]} Rxe1+ {[%emt 0:01:05]} 24. Rxe1 {[%emt 0:00:00]} Nf8 {[%emt 0:00:02]} 25. Bf4 {[%emt 0:00:00]} Qd7 {[%emt 0:00:02]} 26. Rd1 {[%emt 0:00:00]} Qe6 {[%emt 0:00:01]} 27. Rd3 {[%emt 0:00:00]} Ng6 {[%emt 0:02:09]} 28. Bd6 {[%emt 0:00:00]} Qe1+ {[%emt 0:00:17]} 29. Kh2 {[%emt 0:00:00]} Re8 {[%emt 0:00:07]} 30. Rd1 {[%emt 0:00:00]} Qe2 {[%emt 0:00:19]} 31. Rd2 {[%emt 0:00:00]} Qe1 {[%emt 0:00:53]} 32. Rd1 {[%emt 0:00:12]} Qe2 {[%emt 0:03:52]} 33. Rd2 {[%emt 0:01:24]} Qe1 {[%emt 0:00:03]} 34. b5 {[%emt 0:00:03]} cxb5 {[%emt 0:00:03]} 1/2-1/2